bitfinex/quotes_ETHUSD_20251118
["timestamp","ask_amount","ask_price","bid_price","bid_amount"]
[1763477766719,0.002,3072.6,3071.8,0.405504]
[1763477766921,0.291,3072.5,3071.8,0.888504]
[1763477767109,0.291,3072.5,3072.0,0.405504]
[1763477767305,0.291,3072.5,3071.6,0.90699264]
[1763477767551,0.291,3072.5,3071.7,0.483]
[1763477767849,0.0012,3072.6,3072.5,0.405504]
[1763477768155,0.0012,3072.6,3072.5,0.888504]
[1763477768449,0.0012,3072.6,3072.1,0.90699264]
[1763477768450,0.0012,3072.6,3072.1,0.85765889]
[1763477768635,0.0012,3072.6,3071.9,1.30794519]
[1763477768636,0.0012,3072.6,3072.0,0.405504]
[1763477769182,0.291,3072.5,3071.5,0.90699264]
[1763477769382,0.291,3072.5,3071.7,0.405504]
[1763477769587,0.0012,3072.6,3071.9,0.405504]
[1763477769777,0.291,3072.4,3071.9,0.405504]
[1763477769976,0.291,3072.4,3071.7,0.405504]
[1763477770181,0.291,3072.4,3071.7,1.79549664]
[1763477770347,0.291,3072.4,3071.9,0.405504]
[1763477770855,0.0012,3072.6,3072.4,0.405504]
[1763477771150,0.291,3072.5,3072.4,0.405504]
[1763477771377,0.291,3072.5,3072.4,1.74616289]
[1763477771578,0.291,3072.5,3072.4,0.888504]
[1763477771753,0.291,3072.5,3072.4,3.16194164]
[1763477772099,0.291,3072.5,3072.4,1.31249664]
[1763477772451,0.291,3072.5,3072.4,2.17039513]
[1763477772658,0.291,3072.5,3072.4,1.31249664]
[1763477772886,0.0012,3072.6,3072.4,1.31249664]
[1763477773052,0.0012,3072.6,3072.5,0.888504]
[1763477773387,0.0012,3072.6,3072.5,0.67084351]
[1763477773388,0.2922,3072.6,3072.5,0.67084351]
[1763477773693,0.2922,3072.6,3072.5,1.2645966]
[1763477774094,0.2922,3072.6,3072.5,0.405504]
[1763477774277,0.2922,3072.6,3072.5,8.98272202]
[1763477774589,0.2922,3072.6,3072.5,8.95017524]
[1763477774761,0.2922,3072.6,3072.5,10.49615008]
[1763477775794,0.002,3073.3,3072.6,1.31249664]
[1763477775992,0.6797,3075.6,3073.4,0.405504]
[1763477776204,0.6797,3075.6,3074.0,0.405504]
[1763477776403,0.6797,3075.6,3074.0,1.54860502]
[1763477776404,0.4954,3075.2,3074.0,1.54860502]
[1763477776555,0.1843,3075.6,3074.0,1.26297801]
[1763477776556,0.4954,3074.7,3074.0,1.26297801]
[1763477776905,0.4954,3074.7,3073.4,0.90699264]
[1763477776906,0.7884,3074.1,3073.5,0.85747401]
[1763477777190,0.4954,3074.0,3072.8,0.85747401]
[1763477777665,0.4954,3074.0,3072.7,0.85747401]
[1763477777869,0.4954,3074.0,3072.6,0.85747401]
[1763477778165,0.291,3073.9,3072.8,0.85747401]
[1763477778381,0.291,3073.9,3072.9,0.85747401]
[1763477778582,0.4954,3073.8,3072.6,0.85747401]
[1763477778758,0.4954,3073.8,3072.7,0.85747401]
[1763477779158,0.4954,3073.8,3072.8,0.405504]
[1763477779464,0.4954,3073.8,3072.6,0.85747401]
[1763477779701,0.1835,3072.7,3072.6,0.85747401]
[1763477779903,0.4745,3072.7,3072.1,0.85747401]
[1763477780203,0.1835,3072.2,3071.7,0.85747401]
[1763477780398,0.1835,3072.2,3071.3,0.85747401]
[1763477780399,1.057,3072.1,3071.3,0.85747401]
[1763477780558,1.5147,3072.1,3071.2,0.85747401]
[1763477780911,1.057,3072.0,3071.2,0.85747401]
[1763477781055,1.057,3072.0,3071.1,0.001]
[1763477781056,0.291,3071.9,3071.1,0.001]
[1763477781494,0.291,3071.9,3071.1,0.85847401]
[1763477781800,0.1835,3072.2,3071.1,0.85847401]
[1763477781969,0.291,3072.1,3071.4,0.85747401]
[1763477782158,0.291,3072.1,3071.5,0.405504]
[1763477782359,0.291,3072.1,3071.5,1.26297801]
[1763477782593,0.291,3072.1,3071.4,0.85747401]
[1763477782803,0.4577,3072.0,3071.3,0.85747401]
[1763477783108,0.1835,3072.7,3071.3,0.85747401]
[1763477783109,0.291,3071.9,3071.7,1.26297801]
[1763477783397,0.291,3071.8,3071.7,0.405504]
[1763477783767,0.291,3071.8,3071.7,1.71427801]
[1763477783967,0.291,3071.8,3071.7,0.405504]
[1763477784173,0.291,3071.8,3071.7,1.26573847]
[1763477784370,0.291,3071.8,3071.7,1.76379664]
[1763477784571,0.291,3071.8,3071.7,1.60318641]
[1763477785598,0.291,3071.8,3071.4,0.85982974]
[1763477785801,0.291,3071.8,3071.5,0.85982974]
[1763477786115,1.057,3072.7,3071.7,1.26533374]
[1763477786264,0.291,3072.6,3071.7,1.26533374]
[1763477786607,0.7487,3072.6,3071.7,1.26533374]
[1763477786814,0.291,3072.6,3071.7,1.50617722]
[1763477787101,0.291,3072.6,3071.8,0.405504]
[1763477787317,0.291,3072.6,3071.8,1.26533374]
[1763477787473,0.291,3072.6,3072.0,0.405504]
[1763477787663,0.291,3072.6,3072.0,1.26533374]
[1763477787868,0.291,3072.6,3072.0,1.92241734]
[1763477788070,0.7487,3072.6,3072.0,1.26533374]
[1763477788365,0.7487,3072.6,3071.7,2.29093714]
[1763477788366,0.7487,3072.6,3071.8,0.405504]
[1763477788594,0.4577,3072.5,3071.8,0.405504]
[1763477789002,0.4577,3072.5,3071.7,0.405504]
[1763477789202,0.4577,3072.5,3071.7,1.26533374]
[1763477789405,0.291,3072.6,3071.7,2.17232638]
[1763477789607,0.291,3072.6,3071.9,0.405504]
[1763477789902,0.291,3072.6,3072.3,0.405504]
[1763477790317,0.291,3072.6,3072.1,0.405504]
[1763477790669,0.291,3072.6,3072.2,0.405504]
[1763477791101,0.291,3072.6,3072.1,0.405504]
[1763477791606,0.4569,3073.1,3072.1,1.26475263]
[1763477791909,0.4569,3073.1,3072.1,0.405504]
[1763477792117,0.4569,3073.1,3071.5,0.90699264]
[1763477792118,0.1983,3072.2,3071.6,0.85924863]
[1763477792409,0.1983,3072.2,3071.3,0.001]
[1763477792572,0.291,3072.1,3071.3,0.001]
[1763477793391,0.4577,3072.0,3071.3,0.001]
[1763477796344,0.291,3071.9,3071.3,0.001]
[1763477796502,0.4731,3071.8,3071.3,0.001]
[1763477796706,1.348,3071.7,3071.3,0.001]
[1763477797397,1.348,3071.7,3071.4,0.405504]
[1763477797803,1.348,3071.7,3071.3,0.001]
[1763477798121,0.4731,3071.6,3071.3,0.001]
[1763477798328,0.18211,3071.5,3070.9,0.001]
[1763477798498,0.1835,3071.0,3070.9,0.001]
[1763477798695,0.9476,3071.0,3070.9,0.001]
[1763477798895,0.9476,3071.0,3070.6,0.001]
[1763477799123,0.4731,3070.9,3070.6,0.001]
[1763477800118,0.4745,3071.0,3070.6,0.001]
[1763477800331,0.4731,3070.9,3070.6,0.001]
[1763477800735,0.291,3071.0,3070.6,0.001]
[1763477801046,1.348,3070.9,3070.6,0.001]
[1763477801257,0.4731,3072.6,3070.8,0.405504]
[1763477801409,0.7641,3072.1,3070.8,0.405504]
[1763477801609,0.7641,3072.1,3070.6,0.001]
[1763477801808,0.4731,3072.0,3070.6,0.001]
[1763477802609,0.1835,3070.7,3070.6,0.001]
[1763477802809,0.291,3070.7,3070.6,0.001]
[1763477803113,0.7641,3070.7,3070.6,0.001]
[1763477803840,0.291,3070.7,3070.6,0.001]
[1763477805743,0.7641,3070.7,3070.6,0.001]
[1763477805944,0.291,3070.7,3070.6,0.001]
[1763477809370,0.7641,3070.7,3070.6,0.001]
[1763477809528,0.291,3070.7,3070.6,0.001]
[1763477810540,0.291,3070.7,3070.6,0.4523]
[1763477810740,0.291,3070.7,3070.6,0.406504]
[1763477811271,0.291,3070.7,3070.6,0.001]
[1763477811459,0.291,3070.7,3070.6,0.857804]
[1763477811658,0.291,3070.7,3070.6,1.02960926]
[1763477811872,0.291,3070.7,3070.6,0.406504]
[1763477814139,0.291,3070.7,3070.6,2.90789766]
[1763477814548,0.291,3070.7,3070.6,6.16459016]
[1763477814795,0.1983,3072.2,3070.7,1.31249664]
[1763477815095,0.1975,3072.2,3071.2,0.405504]
[1763477815275,0.4731,3072.1,3071.2,0.405504]
[1763477815652,0.1975,3072.2,3071.2,0.405504]
[1763477815852,0.1835,3073.0,3071.4,0.405504]
[1763477816054,0.291,3072.6,3071.4,1.26418555]
[1763477816390,0.291,3072.6,3071.9,0.405504]
[1763477816692,0.291,3072.6,3072.2,0.405504]
[1763477816890,0.291,3072.6,3072.5,0.1644]
[1763477817188,0.291,3072.6,3072.2,0.405504]
[1763477817402,0.291,3072.6,3072.3,0.4513]
[1763477817553,0.291,3072.6,3072.2,0.405504]
[1763477817554,0.291,3072.6,3072.2,1.26418555]
[1763477817752,0.291,3072.6,3072.3,0.63928855]
[1763477818057,0.291,3072.6,3072.4,0.405504]
[1763477818361,0.291,3072.6,3072.4,0.856804]
[1763477818563,0.291,3072.6,3072.4,1.71548555]
[1763477818764,0.291,3072.6,3072.5,2.04484331]
[1763477819010,0.002,3073.1,3072.6,0.405504]
[1763477819322,0.002,3073.1,3073.0,1.54601656]
[1763477819505,0.293,3073.1,3073.0,1.54601656]
[1763477819712,0.7661,3073.1,3072.9,1.14051256]
[1763477820027,0.1835,3072.9,3072.0,0.85586465]
[1763477820236,0.293,3073.1,3072.1,0.1644]
[1763477820577,0.291,3073.0,3072.1,0.6157]
[1763477820780,0.7641,3073.0,3072.2,0.405504]
[1763477821081,0.7641,3073.0,3072.0,0.85586465]
[1763477821082,0.291,3073.0,3072.1,1.021204]
[1763477821435,0.002,3073.1,3072.1,1.42576865]
[1763477821582,0.291,3073.0,3072.5,0.405504]
[1763477821792,0.291,3073.0,3072.7,1.26136865]
[1763477821993,0.291,3072.9,3072.8,2.0475052]
[1763477822220,0.291,3072.9,3072.8,2.16728576]
[1763477822535,0.291,3072.9,3072.8,0.405504]
[1763477822741,0.291,3072.9,3072.8,1.76379664]
[1763477823038,0.002,3073.7,3072.9,0.405504]
[1763477823201,0.002,3073.7,3073.6,2.16511054]
[1763477823389,0.1835,3076.0,3073.6,3.01772445]
[1763477823390,0.4731,3075.8,3073.6,3.01772445]
[1763477823589,0.1835,3076.0,3074.2,0.405504]
[1763477823816,0.4731,3075.9,3074.2,0.85200803]
[1763477823988,0.4731,3075.9,3074.3,0.405504]
[1763477824190,0.291,3075.8,3074.2,0.405504]
[1763477824432,0.291,3075.8,3073.7,1.70522781]
[1763477824433,0.1835,3074.3,3073.1,0.85200803]
[1763477824642,0.1835,3073.2,3072.2,0.18770687]
[1763477824938,0.291,3073.1,3072.2,0.18770687]
[1763477825090,0.291,3073.1,3071.3,3.20320045]
[1763477825091,0.7641,3073.1,3071.4,0.85200803]
[1763477825296,0.1835,3073.2,3071.5,0.4513]
[1763477825512,1.348,3073.1,3071.5,2.21030067]
[1763477825719,1.348,3073.1,3071.5,1.35829264]
[1763477825935,1.8211,3073.1,3071.6,0.8019839]
[1763477826102,1.348,3073.1,3071.6,2.19207654]
[1763477826301,1.348,3073.1,3071.9,0.405504]
[1763477826528,1.348,3073.1,3071.8,0.90699264]
[1763477826734,1.348,3073.1,3071.7,0.90699264]
[1763477826902,0.002,3073.4,3071.7,0.90699264]
[1763477826903,0.002,3073.4,3072.2,0.405504]
[1763477827103,0.002,3073.4,3073.3,0.561904]
[1763477827303,1.057,3074.2,3073.4,0.405504]
[1763477827545,0.1835,3076.3,3074.0,1.25751203]
[1763477827546,0.4789,3076.1,3074.0,1.25751203]
[1763477827748,0.291,3075.8,3074.2,1.25751203]
[1763477828042,0.291,3075.8,3074.6,0.85200803]
[1763477828246,0.1835,3076.3,3074.7,1.31249664]
[1763477828448,0.181,3076.7,3075.8,0.405504]
[1763477828746,0.29,3076.6,3075.8,0.405504]
[1763477829055,0.87545112,3079.8,3076.0,0.405504]
[1763477829400,0.181,3080.3,3076.2,0.405504]
[1763477829401,0.29,3077.8,3076.2,0.405504]
[1763477829537,0.67959,3077.7,3075.8,0.405504]
[1763477829941,0.29,3077.8,3076.2,5.80953828]
[1763477830207,0.87545112,3081.7,3077.5,1.31249664]
[1763477830342,1.73973748,3082.4,3077.5,1.31249664]
[1763477830343,0.181,3081.2,3078.8,0.90699264]
[1763477830547,0.099,3079.6,3078.9,0.42252481]
[1763477830783,0.099,3079.6,3078.9,0.13]
[1763477831186,0.099,3079.6,3079.0,0.4751]
[1763477831489,0.099,3079.6,3078.9,0.13]
[1763477831654,0.099,3079.6,3078.7,0.355504]
[1763477831855,0.099,3079.6,3078.8,0.90699264]
[1763477832056,0.099,3079.6,3078.9,0.75471349]
[1763477832274,0.099,3079.6,3078.9,1.22981349]
[1763477832476,0.099,3079.6,3079.1,0.405504]
[1763477832840,0.099,3079.6,3079.3,0.405504]
[1763477833246,0.099,3079.6,3079.1,0.405504]
[1763477833773,0.099,3079.6,3078.7,0.405504]
[1763477833958,0.4789,3079.5,3077.9,5.80953828]
[1763477834159,0.4789,3079.5,3077.7,0.4751]
[1763477834544,0.099,3079.6,3077.9,5.80953828]
[1763477834958,0.099,3079.6,3078.1,0.405504]
[1763477835160,0.099,3079.6,3078.2,0.65385966]
[1763477835386,0.099,3079.6,3078.3,0.405504]
[1763477835590,0.5779,3079.6,3077.7,0.4751]
[1763477835796,0.099,3079.6,3077.8,1.38209264]
[1763477836085,0.099,3079.6,3078.3,0.405504]
[1763477836286,0.099,3079.6,3078.5,1.31249664]
[1763477836492,0.099,3079.6,3078.7,0.405504]
[1763477836796,0.099,3079.6,3079.5,0.561404]
[1763477837214,0.099,3079.6,3079.5,0.405504]
[1763477838084,0.099,3079.6,3078.2,0.1559]
[1763477838085,0.7589,3079.6,3078.2,0.1559]
[1763477838306,0.7589,3079.6,3077.6,0.4751]
[1763477838468,0.4781,3079.5,3077.6,3.72438515]
[1763477838669,0.4781,3079.5,3077.7,0.84833851]
[1763477839102,0.4781,3079.5,3077.7,0.4759]
[1763477839320,0.4781,3079.5,3077.7,1.38289264]
[1763477839473,0.4781,3079.5,3077.2,0.4759]
[1763477839674,0.90699264,3079.4,3076.4,0.4759]
[1763477839975,0.90699264,3079.4,3076.2,0.90699264]
[1763477839976,0.71946309,3079.3,3076.2,0.90699264]
[1763477840176,1.055,3079.2,3075.9,1.78609408]
[1763477840372,1.055,3079.2,3076.0,0.4759]
[1763477840578,0.4858,3079.1,3076.5,0.90699264]
[1763477840777,0.28,3079.6,3076.1,0.54175566]
[1763477840778,0.6668,3079.6,3077.1,0.90699264]
[1763477840978,1.5408,3080.3,3077.7,1.31249664]
[1763477841275,0.29,3080.2,3077.8,0.405504]
[1763477841508,0.7758,3080.2,3077.8,0.405504]
[1763477841813,0.7758,3080.2,3078.0,0.405504]
[1763477842120,0.66888,3080.1,3077.6,0.405504]
[1763477842326,0.66888,3080.1,3077.8,1.31249664]
[1763477842522,0.4858,3080.0,3077.8,0.405504]
[1763477842706,0.4858,3080.0,3077.5,0.1587]
[1763477843020,1.10539264,3079.9,3076.6,3.25032498]
[1763477843227,0.002,3079.1,3075.9,1.31019408]
[1763477843390,0.90699264,3078.7,3075.7,0.1614]
[1763477843577,0.90699264,3078.1,3074.8,9.06172092]
[1763477843781,0.90699264,3078.1,3074.9,6.50427656]
[1763477843979,1.35585309,3078.0,3075.0,1.23138148]
[1763477844189,1.35585309,3078.0,3075.0,1.70728148]
[1763477844403,0.4858,3077.9,3075.2,0.90699264]
[1763477844605,0.4858,3077.9,3075.5,5.80953828]
[1763477844815,0.4858,3077.9,3075.1,6.97975352]
[1763477844816,0.29,3077.8,3076.0,5.80953828]
[1763477845040,0.29,3077.8,3076.1,1.89345047]
[1763477845257,0.29,3077.8,3076.1,0.58095383]
[1763477845258,0.4858,3077.7,3076.1,0.58095383]
[1763477845394,0.4858,3077.7,3075.9,0.6373]
[1763477845590,0.29,3077.8,3075.9,0.6373]
[1763477845591,0.29,3077.8,3076.1,0.405504]
[1763477845833,0.29,3077.8,3076.1,1.31249664]
[1763477846036,0.29,3077.8,3076.3,0.405504]
[1763477846406,0.4858,3077.7,3075.9,0.1614]
[1763477846610,0.4858,3077.7,3075.6,0.4759]
[1763477846810,0.4858,3077.7,3075.1,3.25192676]
[1763477847002,0.4858,3077.7,3075.2,1.87881346]
[1763477847199,0.4858,3077.7,3075.3,0.50841715]
[1763477847500,0.4858,3077.7,3075.5,0.90699264]
[1763477847693,0.4858,3077.7,3075.7,0.405504]
[1763477848160,0.4858,3077.7,3075.2,7.21245174]
[1763477848161,0.4858,3077.7,3075.2,0.49592082]
[1763477848334,0.4858,3077.7,3074.6,6.50489071]
[1763477848538,0.4858,3077.7,3074.5,0.4759]
[1763477848539,0.4858,3077.7,3074.5,3.72842159]
[1763477848835,1.345,3077.6,3074.7,0.4759]
[1763477849020,0.4858,3077.7,3075.3,0.405504]
[1763477849204,1.10539264,3078.4,3075.3,0.405504]
[1763477849205,0.7758,3077.6,3075.3,0.405504]
[1763477849410,0.7758,3077.6,3075.5,0.405504]
[1763477849719,0.7758,3077.6,3074.7,0.4759]
[1763477849720,0.4858,3077.5,3074.7,0.4759]
[1763477849922,0.4858,3077.5,3074.8,0.03252244]
[1763477850106,0.4858,3077.5,3074.8,0.405504]
[1763477850307,0.4858,3077.5,3074.5,3.25252159]
[1763477850511,0.4858,3077.5,3074.6,0.81674216]
[1763477850726,0.4858,3077.5,3074.7,0.405504]
[1763477850931,0.4858,3077.5,3074.7,0.881404]
[1763477851502,0.4858,3077.5,3074.6,0.34084216]
[1763477851503,0.90699264,3077.1,3074.6,0.34084216]
[1763477851820,0.4858,3077.5,3074.7,0.4759]
[1763477852030,0.1984,3077.0,3074.8,0.405504]
[1763477852343,0.1984,3077.3,3074.8,0.405504]
[1763477852344,0.1984,3077.3,3075.0,0.405504]
[1763477852517,0.1984,3077.0,3075.0,1.31249664]
[1763477852845,0.4858,3076.9,3075.2,0.405504]
[1763477853343,0.1984,3077.0,3075.4,0.405504]
[1763477853646,0.1984,3077.3,3075.4,0.405504]
[1763477853647,0.1984,3077.3,3075.4,1.31249664]
[1763477853844,0.29,3077.2,3075.6,0.405504]
[1763477854026,0.29,3077.2,3076.0,1.31249664]
[1763477854546,0.29,3077.2,3075.6,0.4759]
[1763477854547,0.29,3077.2,3077.1,0.405504]
[1763477854766,0.4858,3077.1,3075.5,0.75979349]
[1763477855043,0.4858,3077.1,3074.8,0.4759]
[1763477855245,0.4858,3077.1,3074.5,3.25248922]
[1763477855449,0.4858,3077.1,3074.4,3.40855179]
[1763477855810,0.4858,3077.1,3074.4,0.1559]
[1763477856009,0.4858,3077.1,3074.5,0.50842561]
[1763477856225,1.345,3077.0,3074.6,1.4477355]
[1763477856432,1.345,3077.0,3074.8,1.31249664]
[1763477856734,0.4981,3076.9,3075.0,0.405504]
[1763477857047,0.4981,3076.9,3075.1,0.405504]
[1763477857273,1.345,3077.0,3075.3,0.405504]
[1763477857411,1.345,3077.0,3075.5,0.405504]
[1763477857611,1.345,3077.0,3075.4,0.90699264]
[1763477857612,1.345,3077.0,3075.7,0.405504]
[1763477857837,1.345,3077.0,3075.6,0.85200803]
[1763477857838,1.345,3077.0,3076.9,0.566904]
[1763477858113,1.345,3077.0,3076.9,0.405504]
[1763477859157,1.5382,3077.0,3076.9,0.405504]
[1763477859316,1.345,3077.0,3076.9,0.405504]
[1763477859515,1.345,3077.0,3075.6,0.90699264]
[1763477859516,2.0363,3077.0,3075.6,0.90699264]
[1763477859720,1.345,3077.0,3075.8,0.405504]
[1763477860125,1.5382,3077.0,3075.8,0.405504]
[1763477860526,1.345,3077.0,3076.0,1.31249664]
[1763477860725,1.345,3077.0,3076.0,0.405504]
[1763477860956,1.345,3077.0,3076.0,1.31249664]
[1763477861155,1.5382,3077.0,3076.0,0.52009421]
[1763477861328,1.345,3077.0,3076.0,0.405504]
[1763477861513,1.345,3077.0,3076.2,0.405504]
[1763477861713,1.345,3077.0,3076.5,0.001]
[1763477861960,1.5523,3077.9,3076.5,0.001]
[1763477862248,1.055,3077.9,3076.5,0.001]
[1763477862679,1.055,3077.9,3076.9,0.405504]
[1763477862959,1.055,3077.9,3077.8,0.565004]
[1763477863119,1.345,3077.9,3077.8,0.405504]
[1763477863730,1.345,3077.9,3076.6,0.405504]
[1763477863931,0.29,3077.8,3076.6,0.405504]
[1763477864128,0.7881,3077.8,3076.5,0.001]
[1763477864451,0.7881,3077.8,3076.6,1.31249664]
[1763477864653,0.7881,3077.8,3076.8,0.405504]
[1763477864864,0.29,3077.8,3077.7,0.565004]
[1763477865934,0.29,3077.8,3077.7,0.405504]
[1763477866255,0.7881,3077.8,3076.2,0.85200803]
[1763477866438,0.1932,3076.6,3075.8,0.001]
[1763477866757,0.9813,3076.6,3075.8,0.001]
[1763477867427,0.29,3076.6,3075.8,0.001]
[1763477868150,0.29,3076.6,3076.1,0.406504]
[1763477868745,0.4981,3077.7,3076.6,0.405504]
[1763477869070,0.29,3077.6,3076.6,1.25751203]
[1763477869274,0.7881,3077.5,3076.6,1.25751203]
[1763477869474,0.7881,3077.5,3076.5,0.001]
[1763477869671,0.29,3077.5,3076.5,0.001]
[1763477870236,0.29,3077.5,3076.6,0.405504]
[1763477870577,0.29,3077.5,3076.5,0.406504]
[1763477870880,0.29,3077.5,3076.7,0.405504]
[1763477871446,0.29,3077.5,3076.7,1.25751203]
[1763477871970,0.29,3077.5,3076.7,0.405504]
[1763477872136,0.29,3077.5,3076.7,1.25751203]
[1763477872996,0.4981,3077.4,3076.7,0.405504]
[1763477873152,0.1932,3076.8,3076.5,0.001]
[1763477873485,0.29,3076.7,3076.5,0.001]
[1763477873777,0.7881,3076.7,3076.5,0.001]
[1763477874155,0.4981,3076.6,3076.5,0.001]
[1763477874352,0.29,3076.7,3076.5,0.001]
[1763477874565,0.4981,3076.6,3076.5,0.001]
[1763477874879,0.4981,3076.6,3076.1,0.001]
[1763477876255,0.29,3076.7,3076.1,0.001]
[1763477876453,0.29,3076.7,3076.1,1.25851203]
[1763477876656,0.29,3076.7,3076.1,1.5142043]
[1763477876982,0.29,3076.7,3076.1,0.66219627]
[1763477877187,0.29,3076.7,3076.1,0.406504]
[1763477877358,0.29,3076.7,3076.1,0.001]
[1763477878087,0.4981,3076.6,3076.1,0.001]
[1763477880454,0.4981,3076.6,3075.8,0.001]
[1763477880983,0.4981,3076.6,3076.0,0.001]
[1763477881341,0.4981,3076.6,3074.4,0.85200803]
[1763477881546,0.1932,3075.5,3074.4,0.19880187]
[1763477881746,0.29,3075.4,3074.5,0.19142561]
[1763477881957,0.4981,3076.6,3074.8,0.405504]
[1763477881958,0.29,3075.3,3074.8,0.405504]
[1763477882159,0.1932,3076.8,3074.8,0.405504]
[1763477882160,0.4981,3076.5,3074.8,0.405504]
[1763477882401,0.29,3076.4,3075.4,0.001]
[1763477882695,0.18431,3076.3,3075.4,0.001]
[1763477882895,0.68241,3076.3,3075.4,0.001]
[1763477883196,0.29,3076.4,3075.4,0.001]
[1763477883402,1.055,3076.5,3075.6,0.85200803]
[1763477883560,0.29,3076.3,3076.1,1.25751203]
[1763477883759,0.29,3076.3,3076.1,0.405504]
[1763477884093,0.29,3076.3,3076.0,0.405504]
[1763477884461,0.29,3076.3,3076.0,0.62195447]
[1763477884667,0.29,3076.3,3075.9,0.405504]
[1763477884897,0.4981,3076.2,3075.9,0.405504]
[1763477885162,0.4981,3076.2,3075.5,0.85200803]
[1763477885163,0.4981,3076.1,3075.5,0.85200803]
[1763477885401,0.4981,3076.1,3075.4,0.85300803]
[1763477885402,0.4973,3076.1,3075.4,0.85300803]
[1763477885600,0.29,3076.3,3075.4,0.85300803]
[1763477885913,0.29,3076.3,3075.5,0.405504]
[1763477886070,0.29,3076.3,3075.4,0.001]
[1763477886411,0.29,3076.2,3075.4,0.001]
[1763477886902,0.29,3076.2,3075.4,0.85300803]
[1763477887107,0.29,3076.2,3075.5,1.25751203]
[1763477887780,0.29,3076.2,3075.5,0.64495627]
[1763477888113,0.29,3076.2,3075.5,1.4969643]
[1763477888266,0.29,3076.2,3075.5,1.25751203]
[1763477888469,0.29,3076.2,3075.5,0.405504]
[1763477889114,0.7438,3076.2,3075.4,0.001]
[1763477889332,0.7438,3076.2,3074.3,2.28896061]
[1763477889333,0.1995,3075.5,3073.9,0.85904573]
[1763477889508,0.1995,3074.3,3073.5,0.85200803]
[1763477889711,0.29,3074.2,3073.5,0.19880187]
[1763477890023,0.29,3074.1,3073.5,0.19880187]
[1763477890230,0.29,3074.1,3073.6,0.405504]
[1763477890388,0.29,3074.1,3073.5,0.19880187]
[1763477890918,0.7438,3074.1,3073.2,0.85200803]
[1763477891100,0.7438,3074.1,3073.1,0.85200803]
[1763477891420,0.29,3074.1,3073.1,1.25751203]
[1763477891780,0.29,3074.1,3073.1,0.405504]
[1763477892026,0.29,3074.1,3073.1,2.16450467]
[1763477892195,0.29,3074.1,3073.2,0.5418609]
[1763477892384,0.4538,3074.0,3072.7,0.85200803]
[1763477892588,0.29,3074.1,3072.9,0.85200803]
[1763477892801,0.29,3074.1,3073.0,0.405504]
[1763477893723,0.7438,3074.1,3072.6,0.85200803]
[1763477893922,0.7438,3074.1,3072.8,0.405504]
[1763477894084,0.4538,3074.0,3072.7,0.85200803]
[1763477894285,0.4538,3074.0,3072.4,0.85200803]
[1763477894487,0.4538,3074.0,3072.3,1.32510803]
[1763477894694,0.4538,3074.0,3072.4,0.405504]
[1763477894926,0.4538,3074.0,3072.3,0.4731]
[1763477895130,0.4538,3074.0,3072.2,0.85200803]
[1763477895334,0.4538,3074.0,3072.3,0.90699264]
[1763477895518,0.4538,3074.0,3072.4,0.46350885]
[1763477895705,0.29,3073.9,3072.3,0.4731]
[1763477895899,0.29,3073.9,3072.4,0.405504]
[1763477896094,0.4538,3073.8,3072.3,1.32510803]
[1763477896334,0.4538,3073.8,3072.4,0.03254784]
[1763477896517,0.4538,3073.8,3072.4,0.405504]
[1763477896834,0.4538,3073.8,3072.1,0.85200803]
[1763477896997,0.4538,3073.8,3072.2,0.405504]
[1763477897397,0.4538,3073.8,3071.9,1.01440803]
[1763477897939,0.4538,3073.8,3071.9,0.1624]
[1763477898142,0.4538,3073.8,3071.5,0.001]
[1763477898835,0.1995,3071.6,3071.5,0.001]
[1763477899000,0.4895,3071.6,3071.5,0.001]
[1763477899200,0.4895,3071.6,3070.9,0.001]
[1763477899201,0.9433,3071.6,3070.9,0.001]
[1763477899694,0.4538,3071.5,3070.9,0.001]
[1763477901301,0.4746,3072.0,3070.9,0.406504]
[1763477901502,1.056,3072.1,3070.9,0.406504]
[1763477901749,1.056,3072.1,3071.3,0.405504]
[1763477901958,0.4746,3073.6,3071.5,0.405504]
[1763477902100,0.1995,3074.2,3071.9,1.31249664]
[1763477902101,1.056,3074.1,3071.9,1.31249664]
[1763477902449,1.056,3074.1,3072.1,0.405504]
[1763477902450,0.29,3074.0,3072.1,0.405504]
[1763477902625,0.6741,3074.2,3072.1,0.405504]
[1763477902801,0.29,3074.1,3072.3,0.405504]
[1763477903135,0.7646,3074.1,3072.3,0.405504]
[1763477903334,0.7646,3074.1,3072.3,4.56738711]
[1763477903335,0.96671,3074.1,3072.3,4.56738711]
[1763477903637,0.29,3074.1,3072.5,0.405504]
[1763477903838,0.4746,3074.0,3072.4,0.405504]
[1763477904212,0.46648354,3074.0,3072.3,0.405504]
[1763477904426,0.46648354,3074.0,3072.3,1.31249664]
[1763477904738,0.46648354,3074.0,3072.3,0.405504]
[1763477904942,0.46648354,3074.0,3071.6,0.4847]
[1763477905141,0.46648354,3074.0,3071.8,0.405504]
[1763477905298,1.347,3073.9,3071.8,0.4847]
[1763477905502,0.18134835,3073.8,3071.4,0.90699264]
[1763477905742,0.18134835,3073.8,3071.5,0.405504]
[1763477905925,0.18134835,3073.8,3071.5,0.890204]
[1763477906326,0.4746,3073.7,3071.7,0.405504]